Cogmind - Beta 17 @@@ ROGUE MODE // 2026.07.21 @ 14:08:40 Player: Elxavo Result: Self-destructed Performance ------------- Evolutions (2) 1000 Regions Visited (5) 1000 Robots Destroyed (32) 160 Value Destroyed (830) 830 Prototype IDs (23) 460 Alien Tech Used (0) 0 Bonus (300) 300 TOTAL SCORE: 3750 Bonus ------- Aligned with FarCom 300 Cogmind --------- Core Integrity 476/550 Matter 292/300 Energy 250/250 System Corruption 0% Temperature Cool (0) Movement Walking (400) Ox4 Location -8/Materials Parts ------- > --- POWER (1) -------- Ion Engine > --- PROPULSION (4) --- Aluminum Leg Aluminum Leg > --- UTILITY (4) ------ Improved Heat Sink Huge Storage Unit Seismic Detector > --- WEAPON (2) ------- Rocket Launcher > --- INVENTORY (25) --- Light Ion Engine Light Deuterium Engine Light Nuclear Core Light Nuclear Core Light Treads Light Treads Light Treads Advanced Treads Aluminum Leg Heat Sink Heat Sink Large Storage Unit Sensor Array Sensor Array Signal Interpreter Improved Terrain Scanner Seismic Detector 0b10 Alert Chip Advanced Targeting Computer Advanced Targeting Computer Reaction Control System Light Assault Rifle Light Assault Rifle Mining Laser Peak State ------------ > --- POWER ------------ Light Ion Engine > --- PROPULSION ------- Aluminum Leg Aluminum Leg Aluminum Leg Aluminum Leg > --- UTILITY ---------- Huge Storage Unit Seismic Detector Light Armor Plating Tractor Beam > --- WEAPON ----------- Assault Rifle Rocket Launcher > --- INVENTORY -------- Ion Engine Light Deuterium Engine Light Nuclear Core Light Treads Light Treads Light Treads Advanced Treads Aluminum Leg Aluminum Leg Heat Sink Heat Sink Large Storage Unit Sensor Array Sensor Array Signal Interpreter Improved Terrain Scanner Seismic Detector 0b10 Alert Chip Advanced Targeting Computer Advanced Targeting Computer Reaction Control System EM Pulse Gun Light Assault Rifle Mining Laser [Rating: 16] Favorites ----------- Power Light Ion Engine Engine Light Ion Engine Power Core Light Nuclear Core Propulsion Aluminum Leg Leg Aluminum Leg Utility Seismic Detector Device Seismic Detector Storage Huge Storage Unit Protection Light Armor Plating Weapon Assault Rifle Energy Gun EM Pulse Gun Ballistic Gun Assault Rifle Launcher Rocket Launcher Special Weapon Mining Laser Build | -11 -10 -10 -10 -9 -8 ------- Run | Yrd Mat Min Exi Min Mat Slots Evolved 4 | . . . . . 4 Power . | . . . . . . Propulsion 2 | . . . . . 2 Utility 2 | . . . . . 2 Weapon . | . . . . . . Parts Attached 25 | 7 5 . 2 . 11 Power 5 | 1 2 . 1 . 1 Engine 4 | 1 1 . 1 . 1 Core 1 | . 1 . . . . Reactor . | . . . . . . Propulsion 8 | 2 1 . . . 5 Treads . | . . . . . . Leg 8 | 2 1 . . . 5 Wheel . | . . . . . . Hover . | . . . . . . Flight . | . . . . . . Utility 6 | 2 1 . . . 3 Device 3 | 1 . . . . 2 Storage 2 | 1 1 . . . . Processor . | . . . . . . Hackware . | . . . . . . Protection 1 | . . . . . 1 Artifact . | . . . . . . Weapon 6 | 2 1 . 1 . 2 Energy Gun 2 | . 1 . . . 1 Energy Cannon . | . . . . . . Ballistic Gun 2 | 2 . . . . . Ballistic Cannon . | . . . . . . Launcher 1 | . . . . . 1 Special Weapon 1 | . . . 1 . . Impact Weapon . | . . . . . . Slashing Weapon . | . . . . . . Piercing Weapon . | . . . . . . Special Melee Weapon . | . . . . . . Unidentified Prototypes . | . . . . . . Parts Lost 12 | . 1 . . . 11 Power 2 | . 1 . . . 1 Propulsion 4 | . . . . . 4 Utility 2 | . . . . . 2 Weapon 4 | . . . . . 4 Highest Loss Streak 7 | . 1 . . . 7 To Critical Strikes . | . . . . . . Average Backups 22 | 4 17 25 25 25 22 Power 2 | . 3 3 2 2 2 Propulsion 7 | 1 5 8 8 8 5 Utility 9 | . 5 10 10 11 10 Weapon 3 | 1 3 4 4 4 3 Tool/Special . | . . . . . . Unused Backups 25 | . . . 1 . 24 Power 4 | . . . . . 4 Propulsion 5 | . . . . . 5 Utility 14 | . . . 1 . 13 Weapon 2 | . . . . . 2 Tool/Special . | . . . . . . Average Slot Usage (%) 98 | . 100 100 100 100 89 Engine 12 | . 9 14 14 14 8 Leg 28 | . 28 28 28 28 33 Device 14 | . 14 14 14 14 15 Storage 13 | . 14 14 14 14 9 Energy Gun 10 | . . 14 13 14 6 Ballistic Gun 16 | . 27 14 14 14 9 Peak Build Rating 16 | 8 11 10 10 10 16 Average Rating 10 | 5 9 10 10 9 13 On Entrance 7 | . 8 10 10 10 9 Avg Prop Armor Cover (%) . | . . . . . . Naked Turns . | . . . . . . Heaviest Build 93 | 12 89 88 88 88 93 Greatest Support 40 | 20 20 20 20 20 40 Greatest Overweight (x) 8 | . 4 4 4 8 4 Average Overweight (x) 3 | . 2 4 4 4 2 Largest Inventory Capacity 25 | 8 25 25 25 25 25 Average Capacity 23 | 7 21 25 25 25 25 Most Carried 25 | 8 25 25 25 25 25 Average Carried 22 | 4 17 25 24 25 22 Final Capacity 25 | 8 25 25 25 25 25 Final Carried 25 | 8 25 25 25 25 24 Class Distribution -------------------- 87% | Mutant 12% | Scavenger-Mutant Dominant Class ---------------- Mutant | -10/Materials Mutant | -10/Mines Mutant | -10/Exiles Mutant | -9/Mines Scavenger-Mutant | -8/Materials Resources | -11 -10 -10 -10 -9 -8 ----------- Run | Yrd Mat Min Exi Min Mat Matter Collected 763 | 231 163 21 20 . 328 Remotely 182 | . . . . . 182 Salvage Created 1095 | 44 322 83 . . 646 Parts 73 | 7 18 6 . . 42 Haulers Intercepted 3 | . 1 . . . 2 Recyclers Shooed 1 | 1 . . . . . Parts Field Recycled . | . . . . . . Retrieved Matter . | . . . . . . Parts Self-Destructed . | . . . . . . Prevented . | . . . . . . Parts Restored . | . . . . . . Kills | -11 -10 -10 -10 -9 -8 ------- Run | Yrd Mat Min Exi Min Mat Combat Hostiles Destroyed 23 | . 4 2 . . 17 Guns 15 | . 4 2 . . 9 AOE 8 | . . . . . 8 Classes Destroyed 7 | 1 3 . . . 3 Builder 2 | . . . . . 2 Tunneler 2 | 2 . . . . . Hauler 3 | . 1 . . . 2 Recycler 1 | . 1 . . . . Watcher 1 | . . . . . 1 Swarmer 8 | . . . . . 8 Grunt 15 | . 4 2 . . 9 Best Kill Streak 6 | 1 2 2 . . 6 Combat Bots Only 6 | . 2 2 . . 6 Max Kills in Single Turn 2 | 1 1 1 . . 2 Gunslinging 1 | . . . . . 1 Exploded 2 | . . . . . 2 Melee . | . . . . . . Uniques/NPCs Destroyed . | . . . . . . Combat | -11 -10 -10 -10 -9 -8 -------- Run | Yrd Mat Min Exi Min Mat Hostile Shots Fired 132 | . 19 12 . 3 98 Missed 34 | . 4 3 . . 27 Hits 98 | . 15 9 . 3 71 Melee 4 | . . . . 2 2 Projectile 94 | . 15 9 . 1 69 Critical Strikes 2 | . 1 . . 1 . Damage Taken 1324 | . 202 106 . 78 938 Core 148 | . 42 22 . 10 74 Absorbed by Shields . | . . . . . . Core Remaining (%) 85 | 100 . . . 70 . Volleys Fired 91 | 4 16 7 2 . 62 Largest 2 | 2 2 2 1 . 2 Hottest 100 | 40 60 60 100 . 60 Shots Fired 159 | 8 32 14 2 . 103 Gun 148 | 8 32 14 . . 94 Cannon . | . . . . . . Launcher 9 | . . . . . 9 Special 2 | . . . 2 . . Kinetic 113 | 8 30 7 . . 68 Thermal 2 | . . . 2 . . Explosive 9 | . . . . . 9 Electromagnetic 35 | . 2 7 . . 26 Robot Hit Streak 16 | 1 8 14 . . 16 Robot Miss Streak 4 | 2 2 2 . . 4 Penetration Max . | . . . . . . Secondary Targets 3 | . . . . . 3 Max Gunslinging Chain 1 | . . . . . 1 Shots Hit Robots 100 | 3 22 10 . . 65 Core Hits 65 | 2 13 5 . . 45 Critical Kills . | . . . . . . Critical Parts Destroyed . | . . . . . . Critical Strikes . | . . . . . . Melee Attacks . | . . . . . . Impact . | . . . . . . Slashing . | . . . . . . Piercing . | . . . . . . Sneak Attacks . | . . . . . . Combat Hostiles . | . . . . . . Follow-up Attacks . | . . . . . . Damage Inflicted 2136 | 42 242 130 . . 1722 Guns 1136 | 42 242 130 . . 722 Cannons . | . . . . . . Explosions 1000 | . . . . . 1000 Melee . | . . . . . . Ramming . | . . . . . . Kinetic 841 | 42 217 60 . . 522 Thermal 38 | . . . . . 38 Explosive 962 | . . . . . 962 Electromagnetic 295 | . 25 70 . . 200 Impact . | . . . . . . Slashing . | . . . . . . Piercing . | . . . . . . Highest Corruption . | . . . . . . Average Corruption . | . . . . . . Corruption Purged . | . . . . . . Corruption Blocked . | . . . . . . Overload Shots . | . . . . . . Overflow Damage 24 | . . . . . 24 Projectiles . | . . . . . . Explosions 24 | . . . . . 24 Melee . | . . . . . . Knockbacks . | . . . . . . Impact . | . . . . . . Kinetic . | . . . . . . Secondary . | . . . . . . Self-Inflicted Damage 103 | . . . . . 103 Shots 3 | . . . . . 3 Rammed . | . . . . . . Targets Rammed 1 | . . . . . 1 Kicked 1 | . . . . . 1 Crushed . | . . . . . . Highest Temperature 61 | . 35 60 20 . 61 Average Temperature 25 | . 14 37 10 . 26 Received Heat Transfer 444 | . 135 60 . 6 243 Siege Activations . | . . . . . . Martial Activations . | . . . . . . Shielding Activations . | . . . . . . Robots Disrupted . | . . . . . . Combat Hostiles . | . . . . . . Robots Corrupted . | . . . . . . Combat Hostiles . | . . . . . . Parts Fried 1 | . . 1 . . . Impact Corruptions . | . . . . . . Robots Melted . | . . . . . . Combat Hostiles . | . . . . . . Parts Melted . | . . . . . . Heat Transferred 50 | . . . . . 50 Parts Sabotaged . | . . . . . . Parts Stolen . | . . . . . . Parts Stripped . | . . . . . . Power Chain Reactions 1 | . . . . . 1 Alert | -11 -10 -10 -10 -9 -8 ------- Run | Yrd Mat Min Exi Min Mat Maximum Alert Level 1 | . . . . . 1 Low Security (%) 99 | 100 100 100 . 100 99 Level 1 . | . . . . . . Level 2 . | . . . . . . Level 3 . | . . . . . . Level 4 . | . . . . . . Level 5 . | . . . . . . High Security . | . . . . . . Max Security . | . . . . . . Peak Influence 219 | 5 57 50 . . 219 Initial . | . . . . . . Average 23 | . 7 22 . . 61 Influence Increases 763 | 10 156 50 . . 547 Destroy 0b10 Robot/C 460 | . 80 40 . . 340 Destroy 0b10 Robot/NC 55 | 10 10 . . . 35 Destroy Leader 78 | . 22 10 . . 46 Successful Hack 19 | . 14 . . . 5 Disable Machine 30 | . . . . . 30 Destroy Structure 61 | . . . . . 61 Lose Combat Pursuer 60 | . 30 . . . 30 Influence Decreases 554 | 10 156 50 . . 338 Time Decay 454 | 10 156 50 . . 238 Lost Part 100 | . . . . . 100 Squads Dispatched 3 | . 1 . . . 2 Investigation 1 | . 1 . . . . Extermination . | . . . . . . Reinforcement 2 | . . . . . 2 Assault . | . . . . . . Garrison . | . . . . . . Intercept . | . . . . . . Searches Triggered . | . . . . . . Construction Impeded 1 | . . . . . 1 Haulers Reinforced . | . . . . . . Active Scanning Responses . | . . . . . . Cargo Convoy Interrupts . | . . . . . . Stealth | -11 -10 -10 -10 -9 -8 --------- Run | Yrd Mat Min Exi Min Mat Distress Signals 1 | . . . . . 1 Communications Jammed . | . . . . . . Distress Signals . | . . . . . . Times Spotted 41 | . 6 2 . 2 31 Peak Tracking Total 7 | . 2 2 . 2 7 Tactical Retreats 4 | . 2 . . . 2 Traps | -11 -10 -10 -10 -9 -8 ------- Run | Yrd Mat Min Exi Min Mat Traps Triggered 1 | . 1 . . . . Indirectly . | . . . . . . Trap Hack Attempts . | . . . . . . Triggered . | . . . . . . Disarmed . | . . . . . . Reprogrammed . | . . . . . . Reused . | . . . . . . Traps Extracted . | . . . . . . Installed . | . . . . . . Triggered . | . . . . . . Machines | -11 -10 -10 -10 -9 -8 ---------- Run | Yrd Mat Min Exi Min Mat Machines Disabled 2 | . . . . . 2 Max in Single Turn 1 | . . . . . 1 Machines Repaired . | . . . . . . Machines Dismantled . | . . . . . . Machines Sabotaged . | . . . . . . Overloaded Fab Kills . | . . . . . . Hacking | -11 -10 -10 -10 -9 -8 --------- Run | Yrd Mat Min Exi Min Mat Machines Accessed 8 | . 2 . 5 . 1 Terminals 2 | . 1 . . . 1 Fabricators . | . . . . . . Repair Stations 1 | . 1 . . . . Recycling Units . | . . . . . . Scanalyzers . | . . . . . . Garrison Access . | . . . . . . Total Hacks 56 | . 3 . 50 . 3 Successful 53 | . 2 . 50 . 1 Failed 3 | . 1 . . . 2 Catastrophic . | . . . . . . Database Lockouts . | . . . . . . Manual 1 | . . . 1 . . Terminals 4 | . 1 . . . 3 Fabricators . | . . . . . . Repair Stations 2 | . 2 . . . . Recycling Units . | . . . . . . Scanalyzers . | . . . . . . Garrison Access . | . . . . . . Terminal Hacks 52 | . 1 . 50 . 1 Record 49 | . . . 49 . . Terminal Index 1 | . . . . . 1 Maintenance Status 1 | . 1 . . . . Proto ID Catalog 1 | . . . 1 . . Fabricator Hacks . | . . . . . . Repair Station Hacks 1 | . 1 . . . . Scan Component 1 | . 1 . . . . Recycling Unit Hacks . | . . . . . . Scanalyzer . | . . . . . . Garrison Access Hacks . | . . . . . . Unauthorized Hacks . | . . . . . . Terminals . | . . . . . . Fabricators . | . . . . . . Repair Stations . | . . . . . . Recycling Units . | . . . . . . Scanalyzers . | . . . . . . Garrison Access . | . . . . . . Data Cores Recovered . | . . . . . . Used . | . . . . . . Hacking Detections 2 | . 1 . . . 1 Full Trace Events . | . . . . . . Feedback Events . | . . . . . . Feedback Blocked . | . . . . . . Robot Schematics Acquired . | . . . . . . Robots Built . | . . . . . . Authchips . | . . . . . . Time . | . . . . . . Total Robot Build Rating . | . . . . . . Part Schematics Acquired . | . . . . . . Parts Built . | . . . . . . Authchips . | . . . . . . Time . | . . . . . . Total Part Build Rating . | . . . . . . Part Studies Acquired . | . . . . . . Parts Repaired . | . . . . . . Time . | . . . . . . Parts Recycled . | . . . . . . Recycled Matter . | . . . . . . Retrieved Matter . | . . . . . . Retrieved Components . | . . . . . . Parts Scanalyzed . | . . . . . . Part Schematics Acquired . | . . . . . . Parts Damaged . | . . . . . . Bothacking | -11 -10 -10 -10 -9 -8 ------------ Run | Yrd Mat Min Exi Min Mat Used RIF Installer . | . . . . . . Robots Hacked . | . . . . . . Non-combat . | . . . . . . Combat . | . . . . . . Robot Hacks Applied . | . . . . . . Relay Couplers Released . | . . . . . . Fabnet Peak Effective % . | . . . . . . Robots Rewired . | . . . . . . Allies Hacked . | . . . . . . Hacks Repelled . | . . . . . . Allies | -11 -10 -10 -10 -9 -8 -------- Run | Yrd Mat Min Exi Min Mat Total Allies . | . . . . . . Largest Group . | . . . . . . Highest-Rated Group . | . . . . . . Highest-Rated Ally . | . . . . . . Total Orders . | . . . . . . Ally Attacks . | . . . . . . Total Damage . | . . . . . . Kills . | . . . . . . Allies Corrupted . | . . . . . . Allies Melted . | . . . . . . Intel | -11 -10 -10 -10 -9 -8 ------- Run | Yrd Mat Min Exi Min Mat Active Infowar (turns) 5429 | 21 1106 105 3172 313 712 Seismic 5429 | 21 1106 105 3172 313 712 Robot Analysis Total . | . . . . . . Derelict Logs Recovered . | . . . . . . Drone Launches . | . . . . . . Drone Recoveries . | . . . . . . Exploration | -11 -10 -10 -10 -9 -8 ------------- Run | Yrd Mat Min Exi Min Mat Turns Passed 5527 | 119 1106 105 3172 313 712 Spaces Moved 1424 | 72 309 22 790 59 172 Core 4 | 4 . . . . . Treads . | . . . . . . Legs 1420 | 68 309 22 790 59 172 Wheels . | . . . . . . Hover . | . . . . . . Flight . | . . . . . . Fastest Speed 50 | 50 120 400 400 400 260 Average Speed 350 | 116 309 400 400 404 266 Slowest Speed 680 | 120 400 400 400 680 400 Overloaded Moves . | . . . . . . Propulsion Burnouts . | . . . . . . Robots Hopped . | . . . . . . Potential Cave-ins . | . . . . . . Cave-ins Triggered . | . . . . . . Exploration Rate (%) 30 | 5 40 6 94 18 17 Regions Visited 5 Branch Regions 3 Pre-discovered Areas 1 | . . . 1 . . Known Exits Taken . | . . . . . . Unknown Exits Taken 5 | 1 1 1 1 1 . Scrap Searched . | . . . . . . Spaces Dug 2 | . . . 2 . . Terrain Destroyed 61 | . . . 2 . 59 Melee . | . . . . . . Projectile 2 | . . . 2 . . AOE 59 | . . . . . 59 Terrain Rammed . | . . . . . . Walls Destroyed . | . . . . . . Machines Disabled . | . . . . . . Actions | -11 -10 -10 -10 -9 -8 --------- Run | Yrd Mat Min Exi Min Mat Total 1821 | 96 433 28 798 139 327 Wait 233 | 6 81 . . 81 65 Move 1419 | 71 308 21 789 58 172 Hop . | . . . . . . Pick Up 42 | 8 20 . 2 . 12 Fast Attach 8 | 7 . . . . 1 Attach 13 | . 2 . . . 11 Detach . | . . . . . . Swap 7 | . 3 . 3 . 1 Drop 7 | . 3 . 2 . 2 Fire 91 | 4 16 7 2 . 62 Melee . | . . . . . . Ram . | . . . . . . Kick 1 | . . . . . 1 Crush . | . . . . . . Escape Stasis . | . . . . . . Rewire . | . . . . . . Trap . | . . . . . . Miscellaneous . | . . . . . . Route ------- -11/Scrapyard -10/Materials -10/Mines -10/Exiles (discovered 2 exits: [*Min x2]) -9/Mines -8/Materials History --------- Turn | Location | Event 9 | -11/Scrapyard | Discovered new exit (range 15) 120 | -11/Scrapyard | Entered Materials 222 | -10/Materials | Discovered new exit (range 13) 311 | -10/Materials | Build established: Mutant 1226 | -10/Materials | Entered Mines 1302 | -10/Mines | Met a Derelict bent on vengeance 1307 | -10/Mines | Deemed a non-threat by the Exiles lab entrance 1311 | -10/Mines | Discovered new exit (range 5) 1331 | -10/Mines | Entered Exiles 1391 | -10/Exiles | Discovered new exit (range 15) 1455 | -10/Exiles | Met 8R-AWN 1515 | -10/Exiles | Met EX-HEX 1835 | -10/Exiles | Met EX-BIN 1907 | -10/Exiles | Aligned with FarCom system 1911 | -10/Exiles | Given EX-Vault access code 2083 | -10/Exiles | Opened EX-Vault 2126 | -10/Exiles | Found 0b10 Alert Chip 2206 | -10/Exiles | Warned to stay clear of 0b10 Research branches 2545 | -10/Exiles | Visited The Gauntlet 2968 | -10/Exiles | Met EX-DEC 3068 | -10/Exiles | Learned location of Zion (-7) 3288 | -10/Exiles | Discovered new exit (range 10) 4503 | -10/Exiles | Left Exiles lab with 0b10 Alert Chip 4503 | -10/Exiles | Entered Mines 4792 | -9/Mines | Discovered new exit (range 7) 4816 | -9/Mines | Entered Materials 4816 | -8/Materials | Evolved 4 slots: Propulsion x2, Utility x2 5116 | -8/Materials | Build established: Scavenger-Mutant 5450 | -8/Materials | Lost 7 parts (1p3n1u2w) 5528 | -8/Materials | Self-destructed Last Messages --------------- 05458_ K-01 Serf collects debris. 05469_ Aluminum Leg destroyed. 05470_ S-10 Pest destroyed. 05475_ Acquired Lgt. Ion Engine. 05477_ Acquired 11 matter. 05485_ Acquired Lgt. Assault Rifle. 05509_ Acquired Imp. Heat Sink. 05515_ Acquired 10 matter. 05520_ G-47 Trooper destroyed. 05521_ Acquired 12 matter. 05523_ G-47 Trooper destroyed. 05523_ U-05 Engineer lays Concrete. 05524_ Acquired 11 matter. 05524_ U-05 Engineer lays Concrete. 05525_ U-05 Engineer destroyed. 05525_ Terminal disabled. 05525_ G-47 Trooper destroyed. 05526_ ALERT: Construction progress impeded, dispatching reinforcements to local area. 05527_ Lgt. Assault Rifle destroyed. Map ----- +----------------------------------------------------+ | ??????????????????????????????????? | | ??????????????????????????????????? | | ??????????????????????????????????? | | ??????????????????????????????????? | | ??????????????????????????????????? | | ??????????????????????????????????? | | ??????????????????????????????????? | | ??????????????????????????????????? | | ??????????????????????????????????? | | ?????????? ???????????????????????? | | ????????#?o???????????????????????? | | ?????? ? ####???????????????????? | | ????? + ????????????? #? | | ?????? # ????????????? #? | | ???? !!! =% ?????????????? #? | | ???? !!! % ?????????????? #? | | ???? !!! = ??????????????? #? | | ????? [ ??????????????? #? | | ?????? =% #######????????# #? | | ?????? u """ #????????# #? | | ?????#+ """ #????????# #? | | ?????# #" g """ #??###???# #? | | ?????# %| #### ##### #? | | ?????# #" ! """""## #? | | ????## ## ##########""T""##! #? | | ????# %k@* u [ [[ == #? | | ????# == * = [[[[! #? | | ????# %############+########## #? | | ????# #?????# % # #? | | ????# #?? # *=# + ## | | ????# # ## %# # | | ????#^ # ""?# # # | | ????# / "??## # + | | ????# # ????#[ ! # ###### | | ????# # ?????# # #?# | | ????#####??????# # #?# | | ???????????????# # #?# | | ???????????????###############?# | | ???????????????????????????????#!! | | ???????????????????????????????#! | | ???????????????????????????????#! | | ???????????????????????????????# ! | | ???????????????????????????????#### | | ??????????????????????????????????? | | ??????????????????????????????????? | | ??????????????????????????????????? | | | | | | | | | +----------------------------------------------------+ Best States ------------- Heat Dissipation 45 Energy Generation 14 Energy Capacity 250 Matter Stores 300 Matter Capacity 300 Sight Range 16 Terrain Scan Density 10 Armor Coverage 150 Evasion (%) 55 Item Schematics ----------------- None Robot Schematics ------------------ None Fabricated ------------ Nothing Repaired ---------- Nothing Studied --------- None Alien Tech Used ----------------- None Achievements -------------- None Challenges ------------ None Game ------ Seed GatlingHugeBasin Manual? 0 Play Time 00:34:48 Cumulative 122.0 hours Start 2026.07.21 @ 13:32:16 End 2026.07.21 @ 14:08:40 Sessions 1 Manual Loads 0 Difficulty Rogue Special Mode None Game No. 147 Rogue 147 Adventurer 0 Explorer 0 Win Type - Total 0 Types 0/0/0/0/0/0/0/0/0/0 Lore% 47 Gallery% 29 Achievement% 25 Wizard Run 0 Options --------- Layout 0 ASCII 0 Keyboard 0 Movement Mouse Keybinds 0 Fullscreen 1 Font 18/SmallcapsGlow Map View 76x50 Zoom Use 0% Tactical HUD 1 Map Filters NONE Filters LOW_CONTRAST(13,24,33) Steam 1 RUN: 9faaf633-b8bc-4341-a979-82b070dc19de